[Event "GrandPrix_29.05"]
[Site "Chess.com"]
[Date "2020.05.29"]
[Round "1"]
[White "SantoBlue"]
[Black "Salnaa"]
[Result "1/2-1/2"]
[WhiteElo "2341"]
[BlackElo "2147"]
[TimeControl "600+2"]
[EndTime "9:30:58 PDT"]
[Termination "Game drawn by repetition"]

1. e4 {[%clk 0:10:00.8]} 1... c5 {[%clk 0:10:00.7]} 2. Nf3 {[%clk 0:10:00.5]}
2... Nc6 {[%clk 0:10:01.2]} 3. Nc3 {[%clk 0:09:53.4]} 3... e5 {[%clk 0:09:55.1]}
4. Bc4 {[%clk 0:09:52.9]} 4... d6 {[%clk 0:09:50.4]} 5. d3 {[%clk 0:09:53]} 5...
Be7 {[%clk 0:09:50.9]} 6. O-O {[%clk 0:09:49.8]} 6... Nf6 {[%clk 0:09:49]} 7.
Ng5 {[%clk 0:09:48.6]} 7... O-O {[%clk 0:09:42.5]} 8. f4 {[%clk 0:09:49]} 8...
Bg4 {[%clk 0:09:35.2]} 9. Nf3 {[%clk 0:09:36.8]} 9... Nd4 {[%clk 0:09:10.6]} 10.
Kh1 {[%clk 0:09:22.5]} 10... Qd7 {[%clk 0:09:01.2]} 11. a4 {[%clk 0:08:44.5]}
11... b6 {[%clk 0:07:49]} 12. f5 {[%clk 0:08:25.8]} 12... a6 {[%clk 0:07:38.7]}
13. Nd5 {[%clk 0:07:56.3]} 13... b5 {[%clk 0:07:05]} 14. Nxf6+ {[%clk
0:07:53.3]} 14... Bxf6 {[%clk 0:07:03.9]} 15. Bd5 {[%clk 0:07:55.2]} 15... Rac8
{[%clk 0:06:42.6]} 16. c3 {[%clk 0:07:54.3]} 16... Nc6 {[%clk 0:06:35.6]} 17. h3
{[%clk 0:07:48.2]} 17... Bxf3 {[%clk 0:06:36.3]} 18. Qxf3 {[%clk 0:07:50.1]}
18... Ne7 {[%clk 0:06:36.3]} 19. Bb3 {[%clk 0:07:25.1]} 19... c4 {[%clk
0:06:19.6]} 20. Bc2 {[%clk 0:07:25]} 20... d5 {[%clk 0:06:07.5]} 21. axb5 {[%clk
0:07:18.5]} 21... dxe4 {[%clk 0:06:00.7]} 22. dxe4 {[%clk 0:06:40.6]} 22... axb5
{[%clk 0:05:53.7]} 23. Be3 {[%clk 0:06:39.6]} 23... Nc6 {[%clk 0:05:43.3]} 24.
Rfd1 {[%clk 0:06:11.6]} 24... Qe7 {[%clk 0:05:38.1]} 25. Qf2 {[%clk 0:06:03.7]}
25... Rfd8 {[%clk 0:05:16.3]} 26. Rd5 {[%clk 0:06:03.6]} 26... Qb7 {[%clk
0:04:17]} 27. Rad1 {[%clk 0:05:49]} 27... b4 {[%clk 0:04:15.5]} 28. Ba4 {[%clk
0:05:46.6]} 28... b3 {[%clk 0:03:52.4]} 29. Bb6 {[%clk 0:05:31.1]} 29... Rxd5
{[%clk 0:03:42.2]} 30. exd5 {[%clk 0:05:30.7]} 30... Nd4 {[%clk 0:03:24.9]} 31.
Bxd4 {[%clk 0:05:18.4]} 31... exd4 {[%clk 0:03:24.9]} 32. Bc6 {[%clk 0:05:19.6]}
32... Qe7 {[%clk 0:02:42]} 33. cxd4 {[%clk 0:05:13.4]} 33... Qe4 {[%clk
0:02:37.6]} 34. Re1 {[%clk 0:04:29.5]} 34... Qxd4 {[%clk 0:02:28.3]} 35. Qxd4
{[%clk 0:04:28.9]} 35... Bxd4 {[%clk 0:02:30.2]} 36. d6 {[%clk 0:03:54.3]} 36...
Bxb2 {[%clk 0:01:39.4]} 37. d7 {[%clk 0:03:52.1]} 37... Rf8 {[%clk 0:01:40]} 38.
Bd5 {[%clk 0:03:51.7]} 38... Bf6 {[%clk 0:01:38.9]} 39. Bxc4 {[%clk 0:03:46.7]}
39... b2 {[%clk 0:01:39.7]} 40. Ba2 {[%clk 0:03:38.7]} 40... g6 {[%clk
0:01:38.6]} 41. fxg6 {[%clk 0:03:17.8]} 41... hxg6 {[%clk 0:01:40.5]} 42. Re8
{[%clk 0:03:18.1]} 42... Kg7 {[%clk 0:01:16.3]} 43. Kg1 {[%clk 0:03:17.4]} 43...
Rh8 {[%clk 0:01:08.2]} 44. Kf2 {[%clk 0:03:11.3]} 44... g5 {[%clk 0:00:44.2]}
45. Kg3 {[%clk 0:02:39]} 45... Bd8 {[%clk 0:00:41.3]} 46. Bb1 {[%clk 0:02:09.1]}
46... Bf6 {[%clk 0:00:41.5]} 47. Kf3 {[%clk 0:02:06.5]} 47... Bd8 {[%clk
0:00:40.1]} 48. Ke2 {[%clk 0:01:47.8]} 48... Bf6 {[%clk 0:00:21.5]} 49. Kd2
{[%clk 0:01:40.5]} 49... g4 {[%clk 0:00:22.4]} 50. Kc2 {[%clk 0:01:13.1]} 50...
gxh3 {[%clk 0:00:22.6]} 51. gxh3 {[%clk 0:01:14.2]} 51... Rf8 {[%clk 0:00:13]}
52. Kb3 {[%clk 0:01:10.2]} 52... Rh8 {[%clk 0:00:13.8]} 53. Ka2 {[%clk
0:00:54.7]} 53... Rf8 {[%clk 0:00:13.9]} 54. Bf5 {[%clk 0:00:55]} 54... Rh8
{[%clk 0:00:14.7]} 55. Bg4 {[%clk 0:00:34.4]} 55... Rf8 {[%clk 0:00:15.7]} 56.
Bf3 {[%clk 0:00:14.8]} 56... Rh8 {[%clk 0:00:16.1]} 57. Bd1 {[%clk 0:00:16.1]}
57... Rf8 {[%clk 0:00:14.1]} 58. Bc2 {[%clk 0:00:12.2]} 58... Rh8 {[%clk
0:00:14.8]} 59. Be4 {[%clk 0:00:12.8]} 59... Rf8 {[%clk 0:00:15.8]} 60. Kb3
{[%clk 0:00:13]} 60... Rh8 {[%clk 0:00:15.4]} 61. Kc2 {[%clk 0:00:10.4]} 61...
Rf8 {[%clk 0:00:13.2]} 62. Kd2 {[%clk 0:00:10.4]} 62... Rh8 {[%clk 0:00:13.8]}
63. Bb1 {[%clk 0:00:11.1]} 63... Rf8 {[%clk 0:00:14.1]} 64. Ke2 {[%clk
0:00:10.5]} 64... Rh8 {[%clk 0:00:15]} 65. Bc2 {[%clk 0:00:07.9]} 65... Rf8
{[%clk 0:00:11.7]} 66. Kf3 {[%clk 0:00:08.2]} 66... Rh8 {[%clk 0:00:12.7]} 67.
Kg3 {[%clk 0:00:07.6]} 67... Rf8 {[%clk 0:00:13.6]} 68. Bb1 {[%clk 0:00:04.1]}
68... Rh8 {[%clk 0:00:14.6]} 69. Be4 {[%clk 0:00:05.5]} 69... Rf8 {[%clk
0:00:15.5]} 70. Bf5 {[%clk 0:00:05.8]} 70... Rh8 {[%clk 0:00:15.6]} 71. Bb1
{[%clk 0:00:07.4]} 71... Rf8 {[%clk 0:00:16.1]} 72. Kf3 {[%clk 0:00:09]} 72...
Rh8 {[%clk 0:00:17.1]} 73. Kg4 {[%clk 0:00:10.6]} 73... Rh4+ {[%clk 0:00:13.2]}
74. Kg3 {[%clk 0:00:08.5]} 74... Rd4 {[%clk 0:00:14.4]} 75. d8=Q {[%clk
0:00:04.1]} 75... Bxd8 {[%clk 0:00:13.7]} 76. Re2 {[%clk 0:00:05.2]} 76... Rb4
{[%clk 0:00:10.5]} 77. Rc2 {[%clk 0:00:03.5]} 77... Bf6 {[%clk 0:00:11.1]} 78.
Rg2 {[%clk 0:00:04.1]} 78... Ra4 {[%clk 0:00:07.4]} 79. Kf3+ {[%clk 0:00:05.2]}
79... Kf8 {[%clk 0:00:08.9]} 80. Rg1 {[%clk 0:00:04.5]} 80... Rc4 {[%clk
0:00:09]} 81. Ke2 {[%clk 0:00:04.4]} 81... Rc1 {[%clk 0:00:10]} 82. Rd1 {[%clk
0:00:05.2]} 82... Kg7 {[%clk 0:00:07.5]} 83. Rf1 {[%clk 0:00:06.5]} 83... Bg5
{[%clk 0:00:05]} 84. Bd3 {[%clk 0:00:07]} 84... f6 {[%clk 0:00:05.3]} 85. Bf5
{[%clk 0:00:05.4]} 85... Kh6 {[%clk 0:00:06.3]} 86. Rd1 {[%clk 0:00:06.6]} 86...
Kh5 {[%clk 0:00:04.7]} 87. Rd8 {[%clk 0:00:06.8]} 87... Kh4 {[%clk 0:00:06]} 88.
Kf3 {[%clk 0:00:05.9]} 88... Rc3+ {[%clk 0:00:06.1]} 89. Kg2 {[%clk 0:00:07.1]}
89... Rg3+ {[%clk 0:00:05.3]} 90. Kh2 {[%clk 0:00:08.3]} 90... Bf4 {[%clk
0:00:05.7]} 91. Rd4 {[%clk 0:00:04.6]} 91... Kg5 {[%clk 0:00:06.6]} 92. Rd5
{[%clk 0:00:03.1]} 92... Rf3+ {[%clk 0:00:05.1]} 93. Kg2 {[%clk 0:00:04.1]}
93... Rg3+ {[%clk 0:00:05.2]} 94. Kf2 {[%clk 0:00:05.5]} 94... Be5 {[%clk
0:00:06.2]} 95. Bb1 {[%clk 0:00:05.2]} 95... Rxh3 {[%clk 0:00:06.8]} 96. Rd1
{[%clk 0:00:06.4]} 96... Rh2+ {[%clk 0:00:08.1]} 97. Kf3 {[%clk 0:00:07.8]}
97... Rh4 {[%clk 0:00:08.3]} 98. Rg1+ {[%clk 0:00:08.4]} 98... Kh5 {[%clk
0:00:08.1]} 99. Rg8 {[%clk 0:00:09.1]} 99... Rf4+ {[%clk 0:00:07.8]} 100. Ke3
{[%clk 0:00:10.6]} 100... Rf1 {[%clk 0:00:08.6]} 101. Rh8+ {[%clk 0:00:09]}
101... Kg4 {[%clk 0:00:09.8]} 102. Rg8+ {[%clk 0:00:10.3]} 102... Kh3 {[%clk
0:00:11]} 103. Rh8+ {[%clk 0:00:11.5]} 103... Kg3 {[%clk 0:00:08.1]} 104. Rg8+
{[%clk 0:00:12]} 104... Kh4 {[%clk 0:00:08.3]} 105. Rh8+ {[%clk 0:00:13.1]}
105... Kg5 {[%clk 0:00:09.8]} 106. Rg8+ {[%clk 0:00:09.3]} 106... Kh6 {[%clk
0:00:11.2]} 107. Rh8+ {[%clk 0:00:03.7]} 107... Kg7 {[%clk 0:00:11.6]} 108. Rh7+
{[%clk 0:00:05.1]} 108... Kg8 {[%clk 0:00:13]} 109. Bg6 {[%clk 0:00:05.2]}
109... b1=Q {[%clk 0:00:12.4]} 110. Bxb1 {[%clk 0:00:06.8]} 110... Rxb1 {[%clk
0:00:13.9]} 111. Rd7 {[%clk 0:00:08.5]} 111... Rf1 {[%clk 0:00:13.2]} 112. Ke4
{[%clk 0:00:09.9]} 112... Kf8 {[%clk 0:00:13.5]} 113. Rb7 {[%clk 0:00:10.3]}
113... Bd6 {[%clk 0:00:12.9]} 114. Kd5 {[%clk 0:00:11.5]} 114... Be7 {[%clk
0:00:13.7]} 115. Ke6 {[%clk 0:00:13]} 115... Re1+ {[%clk 0:00:14.8]} 116. Kf5
{[%clk 0:00:14.6]} 116... Kf7 {[%clk 0:00:16.7]} 117. Ra7 {[%clk 0:00:16.1]}
117... Re5+ {[%clk 0:00:18]} 118. Kf4 {[%clk 0:00:17.6]} 118... Rb5 {[%clk
0:00:19.4]} 119. Rd7 {[%clk 0:00:18.2]} 119... Ke6 {[%clk 0:00:20.6]} 120. Ra7
{[%clk 0:00:19.1]} 120... Bd6+ {[%clk 0:00:22.1]} 121. Ke4 {[%clk 0:00:20.1]}
121... f5+ {[%clk 0:00:24]} 122. Kf3 {[%clk 0:00:21.4]} 122... Rb3+ {[%clk
0:00:25.3]} 123. Ke2 {[%clk 0:00:22.7]} 123... f4 {[%clk 0:00:25.1]} 124. Ra5
{[%clk 0:00:24.1]} 124... Be5 {[%clk 0:00:24.5]} 125. Ra8 {[%clk 0:00:24.2]}
125... Kf5 {[%clk 0:00:25.9]} 126. Ra4 {[%clk 0:00:25.4]} 126... f3+ {[%clk
0:00:25.3]} 127. Kf2 {[%clk 0:00:26.3]} 127... Bf4 {[%clk 0:00:23.2]} 128. Ra8
{[%clk 0:00:24.1]} 128... Ke4 {[%clk 0:00:23.8]} 129. Ra4+ {[%clk 0:00:24]}
129... Kf5 {[%clk 0:00:25]} 130. Ra8 {[%clk 0:00:23.9]} 130... Kg4 {[%clk
0:00:26.5]} 131. Rg8+ {[%clk 0:00:21.6]} 131... Bg5 {[%clk 0:00:27.4]} 132. Rg7
{[%clk 0:00:23.1]} 132... Rb2+ {[%clk 0:00:28.5]} 133. Kf1 {[%clk 0:00:24.7]}
133... Kh4 {[%clk 0:00:27.3]} 134. Rg8 {[%clk 0:00:15.8]} 134... Be3 {[%clk
0:00:24.7]} 135. Rh8+ {[%clk 0:00:16.5]} 135... Kg4 {[%clk 0:00:24]} 136. Rg8+
{[%clk 0:00:17.4]} 136... Bg5 {[%clk 0:00:25.2]} 137. Rg7 {[%clk 0:00:15.7]}
137... Rb5 {[%clk 0:00:20]} 138. Kf2 {[%clk 0:00:14.5]} 138... Rb2+ {[%clk
0:00:20.7]} 139. Kf1 {[%clk 0:00:15.4]} 1/2-1/2

[Event "GrandPrix_29.05"]
[Site "Chess.com"]
[Date "2020.05.29"]
[Round "2"]
[White "ZoranRunic1"]
[Black "Khvicha_Supatashvili"]
[Result "1-0"]
[WhiteElo "2204"]
[BlackElo "1707"]
[TimeControl "600+2"]
[EndTime "9:42:34 PDT"]
[Termination "ZoranRunic1 won by resignation"]

1. e4 {[%clk 0:10:01.9]} 1... c5 {[%clk 0:09:59.4]} 2. Nf3 {[%clk 0:10:01.1]}
2... Nc6 {[%clk 0:09:59.8]} 3. d4 {[%clk 0:09:55.5]} 3... cxd4 {[%clk
0:09:59.9]} 4. Nxd4 {[%clk 0:09:55.3]} 4... Nf6 {[%clk 0:10:00.3]} 5. Nc3 {[%clk
0:09:53.6]} 5... d6 {[%clk 0:10:01.5]} 6. Bc4 {[%clk 0:09:52]} 6... e6 {[%clk
0:10:00.8]} 7. Be3 {[%clk 0:09:51.2]} 7... a6 {[%clk 0:09:59.1]} 8. Qe2 {[%clk
0:09:46.2]} 8... Qc7 {[%clk 0:09:59.2]} 9. O-O-O {[%clk 0:09:37.9]} 9... Na5
{[%clk 0:09:59.9]} 10. Bd3 {[%clk 0:09:18.5]} 10... b5 {[%clk 0:09:55.3]} 11. g4
{[%clk 0:09:13.3]} 11... Be7 {[%clk 0:09:33.2]} 12. g5 {[%clk 0:09:11.8]} 12...
Nd7 {[%clk 0:09:33.4]} 13. Nf5 {[%clk 0:08:33.3]} 13... exf5 {[%clk 0:08:39.6]}
14. Nd5 {[%clk 0:08:31.1]} 14... Qd8 {[%clk 0:07:18.5]} 15. exf5 {[%clk
0:08:23.5]} 15... Nc6 {[%clk 0:06:54.4]} 16. f6 {[%clk 0:07:11.4]} 16... gxf6
{[%clk 0:06:53.4]} 17. gxf6 {[%clk 0:07:09.4]} 17... Nxf6 {[%clk 0:06:24.8]} 18.
Bb6 {[%clk 0:06:51.4]} 18... Qd7 {[%clk 0:06:11]} 19. Nxf6+ {[%clk 0:06:50.4]}
1-0

[Event "GrandPrix_29.05"]
[Site "Chess.com"]
[Date "2020.05.29"]
[Round "2"]
[White "Bengalas"]
[Black "Haykos"]
[Result "1/2-1/2"]
[WhiteElo "2039"]
[BlackElo "2168"]
[TimeControl "600+2"]
[EndTime "9:42:44 PDT"]
[Termination "Game drawn by agreement"]

1. d4 {[%clk 0:10:01.9]} 1... d5 {[%clk 0:09:24.4]} 2. c4 {[%clk 0:10:01.7]}
2... dxc4 {[%clk 0:09:25.6]} 3. e4 {[%clk 0:10:02.2]} 3... e5 {[%clk 0:09:20.5]}
4. Nf3 {[%clk 0:10:03]} 4... Bg4 {[%clk 0:07:50.8]} 5. Bxc4 {[%clk 0:09:57]}
5... Qe7 {[%clk 0:06:37.7]} 6. dxe5 {[%clk 0:09:13.7]} 6... Nc6 {[%clk
0:06:34.3]} 7. Bb5 {[%clk 0:08:56.8]} 7... Rd8 {[%clk 0:06:29.1]} 8. Bxc6+
{[%clk 0:08:46]} 8... bxc6 {[%clk 0:06:30]} 9. Qc2 {[%clk 0:08:46.9]} 9... Qc5
{[%clk 0:06:18.8]} 10. Qxc5 {[%clk 0:07:38.2]} 10... Bxc5 {[%clk 0:06:20.7]} 11.
Bg5 {[%clk 0:07:38]} 11... Rb8 {[%clk 0:06:04.1]} 1/2-1/2

[Event "GrandPrix_29.05"]
[Site "Chess.com"]
[Date "2020.05.29"]
[Round "2"]
[White "CHESSMASTER759"]
[Black "cassoulet"]
[Result "1-0"]
[WhiteElo "2164"]
[BlackElo "2074"]
[TimeControl "600+2"]
[EndTime "9:43:19 PDT"]
[Termination "CHESSMASTER759 won by resignation"]

1. e4 {[%clk 0:10:01.9]} 1... c5 {[%clk 0:10:00.5]} 2. Nf3 {[%clk 0:10:01.9]}
2... Nc6 {[%clk 0:10:02]} 3. d4 {[%clk 0:10:00]} 3... cxd4 {[%clk 0:10:03.9]} 4.
Nxd4 {[%clk 0:10:01.6]} 4... Nf6 {[%clk 0:10:05.2]} 5. Nc3 {[%clk 0:10:02.6]}
5... e6 {[%clk 0:10:06.3]} 6. Nxc6 {[%clk 0:09:57.7]} 6... bxc6 {[%clk
0:10:08.2]} 7. Bd3 {[%clk 0:09:58.6]} 7... d5 {[%clk 0:10:08.5]} 8. O-O {[%clk
0:09:59]} 8... Bd6 {[%clk 0:09:49.2]} 9. Re1 {[%clk 0:09:56.3]} 9... Bc5 {[%clk
0:09:14]} 10. Na4 {[%clk 0:09:48.3]} 10... Be7 {[%clk 0:09:10.4]} 11. e5 {[%clk
0:09:43.9]} 11... Nd7 {[%clk 0:09:10.1]} 12. c4 {[%clk 0:09:45.5]} 12... dxc4
{[%clk 0:08:28.6]} 13. Bxc4 {[%clk 0:09:43.8]} 13... O-O {[%clk 0:08:27.5]} 14.
Qg4 {[%clk 0:09:41.1]} 14... Re8 {[%clk 0:07:54.4]} 15. Bh6 {[%clk 0:09:33.8]}
15... Bf8 {[%clk 0:07:55.4]} 16. Nc3 {[%clk 0:09:13.8]} 16... Qa5 {[%clk
0:07:39.6]} 17. Qg3 {[%clk 0:09:09.9]} 17... Rb8 {[%clk 0:07:15.9]} 18. Ne4
{[%clk 0:09:05.5]} 18... Qxe5 {[%clk 0:05:21.3]} 19. Bf4 {[%clk 0:09:02.5]}
19... Qxb2 {[%clk 0:05:20.9]} 20. Bxb8 {[%clk 0:07:46.3]} 20... Qxb8 {[%clk
0:05:22.8]} 21. Nf6+ {[%clk 0:07:47.2]} 21... Kh8 {[%clk 0:05:23.3]} 22. Qxb8
{[%clk 0:07:45.8]} 22... Nxb8 {[%clk 0:05:18.4]} 23. Nxe8 {[%clk 0:07:47.7]}
23... Nd7 {[%clk 0:05:12.5]} 24. Rad1 {[%clk 0:07:45.2]} 24... Bb4 {[%clk
0:05:03.5]} 25. Nd6 {[%clk 0:07:43.2]} 1-0

[Event "GrandPrix_29.05"]
[Site "Chess.com"]
[Date "2020.05.29"]
[Round "2"]
[White "Shota_Azaladze"]
[Black "Jaka_Brilej"]
[Result "1-0"]
[WhiteElo "2270"]
[BlackElo "2179"]
[TimeControl "600+2"]
[EndTime "9:43:25 PDT"]
[Termination "Shota_Azaladze won by resignation"]

1. Nf3 {[%clk 0:10:01.9]} 1... f5 {[%clk 0:10:00.2]} 2. g3 {[%clk 0:10:00.8]}
2... Nf6 {[%clk 0:09:59.4]} 3. Bg2 {[%clk 0:10:02.3]} 3... g6 {[%clk 0:10:00.1]}
4. O-O {[%clk 0:10:03.3]} 4... Bg7 {[%clk 0:10:01]} 5. c4 {[%clk 0:10:04.9]}
5... O-O {[%clk 0:10:01.2]} 6. Nc3 {[%clk 0:10:06.5]} 6... d6 {[%clk 0:10:01.9]}
7. d4 {[%clk 0:10:07.5]} 7... c6 {[%clk 0:10:02.5]} 8. Qc2 {[%clk 0:10:02.2]}
8... Na6 {[%clk 0:09:58.7]} 9. Re1 {[%clk 0:09:54.3]} 9... Ne4 {[%clk
0:08:37.5]} 10. Nxe4 {[%clk 0:09:18.7]} 10... fxe4 {[%clk 0:08:39.4]} 11. Qxe4
{[%clk 0:09:09.6]} 11... Bf5 {[%clk 0:08:39.1]} 12. Qh4 {[%clk 0:09:09.8]} 12...
Nb4 {[%clk 0:08:39.3]} 13. Bg5 {[%clk 0:08:45.9]} 13... Qb6 {[%clk 0:07:49.6]}
14. e4 {[%clk 0:08:31]} 14... Bd7 {[%clk 0:07:27.9]} 15. Bxe7 {[%clk 0:08:07.2]}
15... Rf7 {[%clk 0:07:09]} 16. c5 {[%clk 0:07:46.2]} 16... Qa6 {[%clk 0:06:56]}
17. cxd6 {[%clk 0:07:37]} 17... Rxf3 {[%clk 0:06:47.5]} 18. Bxf3 {[%clk
0:07:36.2]} 18... Nc2 {[%clk 0:06:48.6]} 19. e5 {[%clk 0:07:28.6]} 19... Nxe1
{[%clk 0:06:44.9]} 20. Rxe1 {[%clk 0:07:28.1]} 20... Qxa2 {[%clk 0:06:45.9]} 21.
Bg4 {[%clk 0:07:09.3]} 21... Bxg4 {[%clk 0:05:43.5]} 22. Qxg4 {[%clk 0:07:11.2]}
22... Qa5 {[%clk 0:05:44.7]} 23. Qe6+ {[%clk 0:06:52.8]} 23... Kh8 {[%clk
0:05:45.1]} 24. Re3 {[%clk 0:06:53.7]} 1-0

[Event "GrandPrix_29.05"]
[Site "Chess.com"]
[Date "2020.05.29"]
[Round "2"]
[White "levvard"]
[Black "GMMarcinDziuba"]
[Result "0-1"]
[WhiteElo "2029"]
[BlackElo "2511"]
[TimeControl "600+2"]
[EndTime "9:43:52 PDT"]
[Termination "GMMarcinDziuba won by resignation"]

1. b4 {[%clk 0:10:01.9]} 1... e5 {[%clk 0:09:44.9]} 2. Bb2 {[%clk 0:10:02.1]}
2... Bxb4 {[%clk 0:09:45.2]} 3. Bxe5 {[%clk 0:10:02.8]} 3... Nf6 {[%clk
0:09:46.4]} 4. e3 {[%clk 0:10:02.2]} 4... O-O {[%clk 0:09:47.1]} 5. Nf3 {[%clk
0:09:52.9]} 5... Re8 {[%clk 0:09:45.2]} 6. Bc3 {[%clk 0:09:50.9]} 6... Bxc3
{[%clk 0:09:14.5]} 7. Nxc3 {[%clk 0:09:52.8]} 7... d5 {[%clk 0:09:15.3]} 8. Be2
{[%clk 0:09:51]} 8... c5 {[%clk 0:09:15.9]} 9. O-O {[%clk 0:09:49.7]} 9... Nc6
{[%clk 0:09:16.7]} 10. Rb1 {[%clk 0:09:45.6]} 10... d4 {[%clk 0:09:10.7]} 11.
Na4 {[%clk 0:09:39]} 11... b6 {[%clk 0:08:52.4]} 12. Bb5 {[%clk 0:09:35.5]}
12... Bd7 {[%clk 0:08:46]} 13. Nb2 {[%clk 0:09:20]} 13... a6 {[%clk 0:08:34.9]}
14. Be2 {[%clk 0:09:13.9]} 14... Be6 {[%clk 0:08:17.9]} 15. Nc4 {[%clk
0:09:08.6]} 15... b5 {[%clk 0:08:01.1]} 16. Nb2 {[%clk 0:09:02.2]} 16... Bxa2
{[%clk 0:08:00.2]} 17. Ra1 {[%clk 0:08:35.8]} 17... Be6 {[%clk 0:07:37.2]} 18.
Ng5 {[%clk 0:08:32.9]} 18... Bd5 {[%clk 0:07:36.4]} 19. c4 {[%clk 0:08:22.5]}
19... dxc3 {[%clk 0:07:32]} 20. dxc3 {[%clk 0:08:22.6]} 20... c4 {[%clk
0:07:17.8]} 21. Bf3 {[%clk 0:08:21.8]} 21... h6 {[%clk 0:07:17]} 22. Nh3 {[%clk
0:07:53.7]} 22... Ne5 {[%clk 0:07:16.3]} 23. Bxd5 {[%clk 0:07:52.7]} 23... Qxd5
{[%clk 0:07:11.6]} 24. Qxd5 {[%clk 0:07:51.6]} 24... Nxd5 {[%clk 0:07:11.5]} 25.
Nd1 {[%clk 0:07:45.2]} 25... Nd3 {[%clk 0:07:10.6]} 26. Ra5 {[%clk 0:07:37.6]}
26... Nc1 {[%clk 0:06:54.5]} 27. Nf4 {[%clk 0:07:30.6]} 27... Nxf4 {[%clk
0:06:53]} 28. exf4 {[%clk 0:07:32.5]} 28... Ne2+ {[%clk 0:06:45.3]} 29. Kh1
{[%clk 0:07:33]} 29... Nxf4 {[%clk 0:06:42.5]} 30. Ne3 {[%clk 0:07:32.3]} 30...
Nd3 {[%clk 0:06:43.5]} 31. Nd5 {[%clk 0:07:30.7]} 31... Ra7 {[%clk 0:05:59]} 32.
Nb4 {[%clk 0:07:24.8]} 32... Nxb4 {[%clk 0:05:54.3]} 33. cxb4 {[%clk 0:07:26.7]}
33... Re2 {[%clk 0:05:54.5]} 34. Ra3 {[%clk 0:07:13.3]} 34... Rb2 {[%clk
0:05:53.4]} 35. Rc3 {[%clk 0:07:08]} 35... Rxb4 {[%clk 0:05:53.8]} 0-1

[Event "GrandPrix_29.05"]
[Site "Chess.com"]
[Date "2020.05.29"]
[Round "2"]
[White "Semen_Khanin"]
[Black "ArnaudovP"]
[Result "1-0"]
[WhiteElo "2517"]
[BlackElo "1970"]
[TimeControl "600+2"]
[EndTime "9:43:57 PDT"]
[Termination "Semen_Khanin won by resignation"]

1. e4 {[%clk 0:10:01.9]} 1... c6 {[%clk 0:09:55.6]} 2. d4 {[%clk 0:10:02.6]}
2... d5 {[%clk 0:09:56.2]} 3. Nd2 {[%clk 0:10:04.4]} 3... dxe4 {[%clk
0:09:56.5]} 4. Nxe4 {[%clk 0:10:06.1]} 4... Nf6 {[%clk 0:09:56.4]} 5. Nxf6+
{[%clk 0:10:07.1]} 5... exf6 {[%clk 0:09:57.3]} 6. c3 {[%clk 0:10:08.7]} 6...
Bd6 {[%clk 0:09:57.9]} 7. Bd3 {[%clk 0:10:09.7]} 7... O-O {[%clk 0:09:57.7]} 8.
Qc2 {[%clk 0:10:10]} 8... Re8+ {[%clk 0:09:58.2]} 9. Ne2 {[%clk 0:10:11.3]} 9...
h5 {[%clk 0:09:59.3]} 10. O-O {[%clk 0:10:06.7]} 10... h4 {[%clk 0:09:58.1]} 11.
Nf4 {[%clk 0:10:03]} 11... Qc7 {[%clk 0:08:52]} 12. g3 {[%clk 0:09:56.2]} 12...
Nd7 {[%clk 0:08:50.7]} 13. Qd1 {[%clk 0:09:56]} 13... Nf8 {[%clk 0:08:40.3]} 14.
Qh5 {[%clk 0:09:56.3]} 14... g6 {[%clk 0:08:05]} 15. Qh6 {[%clk 0:09:56.6]}
15... hxg3 {[%clk 0:07:08.1]} 16. hxg3 {[%clk 0:09:57.2]} 16... Ne6 {[%clk
0:07:00.3]} 17. Nh5 {[%clk 0:08:05.8]} 17... Qd8 {[%clk 0:05:40.8]} 18. Bxg6
{[%clk 0:08:00]} 18... fxg6 {[%clk 0:05:31.8]} 19. Qxg6+ {[%clk 0:08:00.9]}
19... Kf8 {[%clk 0:05:18.5]} 20. Bh6+ {[%clk 0:06:31.6]} 20... Ke7 {[%clk
0:05:18.2]} 21. Qh7+ {[%clk 0:06:32.9]} 1-0

[Event "GrandPrix_29.05"]
[Site "Chess.com"]
[Date "2020.05.29"]
[Round "2"]
[White "DenisQ"]
[Black "Sunnika"]
[Result "1-0"]
[WhiteElo "1940"]
[BlackElo "2163"]
[TimeControl "600+2"]
[EndTime "9:44:08 PDT"]
[Termination "DenisQ won by resignation"]

1. Nf3 {[%clk 0:09:51]} 1... Nf6 {[%clk 0:09:54.7]} 2. c4 {[%clk 0:09:50.8]}
2... e6 {[%clk 0:09:54.6]} 3. g3 {[%clk 0:09:49.1]} 3... b6 {[%clk 0:09:55]} 4.
Bg2 {[%clk 0:09:45.2]} 4... Bb7 {[%clk 0:09:51.7]} 5. O-O {[%clk 0:09:44.8]}
5... Be7 {[%clk 0:09:51.7]} 6. Nc3 {[%clk 0:09:44.9]} 6... O-O {[%clk
0:09:48.1]} 7. Re1 {[%clk 0:09:41.9]} 7... d5 {[%clk 0:09:49.3]} 8. cxd5 {[%clk
0:09:41.8]} 8... Nxd5 {[%clk 0:09:49.8]} 9. e4 {[%clk 0:09:25.3]} 9... Nxc3
{[%clk 0:09:48.8]} 10. bxc3 {[%clk 0:09:27.2]} 10... Nc6 {[%clk 0:09:48.9]} 11.
d4 {[%clk 0:09:22.7]} 11... Re8 {[%clk 0:09:49.5]} 12. h4 {[%clk 0:09:04.5]}
12... h6 {[%clk 0:09:47.8]} 13. Bf4 {[%clk 0:08:39.5]} 13... Bd6 {[%clk
0:09:46.5]} 14. e5 {[%clk 0:07:19.5]} 14... Bf8 {[%clk 0:09:44.8]} 15. Nd2
{[%clk 0:07:05.9]} 15... Na5 {[%clk 0:09:42.3]} 16. Ne4 {[%clk 0:06:26.7]} 16...
Bd5 {[%clk 0:09:41.1]} 17. Qg4 {[%clk 0:06:09.8]} 17... Kh7 {[%clk 0:08:41.8]}
18. Qh5 {[%clk 0:05:14.2]} 18... Kg8 {[%clk 0:08:31.4]} 19. Bxh6 {[%clk
0:04:31.7]} 19... gxh6 {[%clk 0:07:44]} 20. Nf6+ {[%clk 0:04:30.2]} 20... Kh8
{[%clk 0:07:41.8]} 21. Bxd5 {[%clk 0:04:10.5]} 21... exd5 {[%clk 0:07:39.1]} 22.
Qf5 {[%clk 0:04:09.4]} 1-0